bitfinex-derivatives/quotes_BNBF0:USTF0_20251203
["timestamp","ask_amount","ask_price","bid_price","bid_amount"]
[1764779296108,0.63650167,896.17,894.93,0.868]
[1764779296411,0.63650167,896.16,894.93,0.868]
[1764779296610,0.63650167,896.15,894.93,0.868]
[1764779296807,0.63650167,896.14,894.93,0.868]
[1764779297011,0.63650167,896.13,894.98,1.65894078]
[1764779297212,0.63650167,896.12,894.99,1.65894078]
[1764779297413,0.63650167,896.11,895.02,1.65894078]
[1764779297610,0.63650167,896.1,895.02,1.65894078]
[1764779297814,0.63650167,896.09,895.01,1.65894078]
[1764779298014,0.8310464,896.38,895.01,1.65894078]
[1764779298214,1.46788837,896.37,895.02,1.65894078]
[1764779298517,0.63684197,896.36,895.02,1.65894078]
[1764779299216,1.46788837,896.36,895.03,1.65894078]
[1764779299415,0.63684197,896.35,895.03,1.65894078]
[1764779299615,0.63684197,896.35,895.04,1.65894078]
[1764779300111,1.46788837,896.35,895.04,1.65894078]
[1764779300313,0.63684197,896.34,895.04,1.65894078]
[1764779301120,0.63684197,896.34,895.06,1.65894078]
[1764779301318,1.46788837,896.34,895.05,1.65894078]
[1764779301521,0.63684197,896.33,895.06,1.65894078]
[1764779302121,0.63684197,896.32,895.06,1.65894078]
[1764779302423,0.8310464,896.35,895.06,1.65894078]
[1764779302424,0.63684197,896.31,895.07,0.858]
[1764779302622,0.63684197,896.3,895.07,2.51694078]
[1764779302816,0.63684197,896.29,895.07,2.51694078]
[1764779303020,1.1022153,896.5,895.07,2.51694078]
[1764779303021,0.63684197,896.28,895.08,1.65894078]
[1764779303318,0.63684197,896.27,895.15,1.65894078]
[1764779303520,0.63684197,896.26,895.16,1.65894078]
[1764779303719,0.63684197,896.25,895.15,1.65894078]
[1764779303919,0.63684197,896.24,895.17,1.65894078]
[1764779304222,0.63684197,896.23,895.17,1.65894078]
[1764779304423,0.63684197,896.22,895.17,1.65894078]
[1764779304620,0.63684197,896.21,895.17,1.65894078]
[1764779304819,0.63684197,896.2,895.18,1.65894078]
[1764779305019,0.63684197,896.19,895.18,1.65894078]
[1764779305219,0.63684197,896.18,895.19,1.65894078]
[1764779305422,0.63684197,896.17,895.19,1.65894078]
[1764779305623,0.63684197,896.16,895.19,1.65894078]
[1764779305821,0.63684197,896.15,895.19,1.65894078]
[1764779306022,0.63684197,896.14,895.19,1.65894078]
[1764779306223,0.63684197,896.13,895.2,1.041]
[1764779306425,0.63684197,896.12,895.2,1.041]
[1764779306623,0.63684197,896.11,895.2,1.041]
[1764779306919,0.63684197,896.1,895.2,1.041]
[1764779307124,0.8310464,896.38,895.2,1.041]
[1764779307623,0.63809878,896.37,895.2,2.69994078]
[1764779307820,0.63809878,896.36,895.2,2.69994078]
[1764779308024,0.63809878,896.35,895.2,2.69994078]
[1764779308223,0.63809878,896.34,895.2,2.69994078]
[1764779308518,0.63809878,896.33,895.2,2.69994078]
[1764779308825,0.63809878,896.32,895.2,2.69994078]
[1764779309120,0.63809878,896.31,895.2,2.69994078]
[1764779309323,0.63809878,896.3,895.2,2.69994078]
[1764779309523,0.63809878,896.29,895.2,2.69994078]
[1764779309723,0.63809878,896.28,895.23,1.65894078]
[1764779310024,0.63809878,896.27,895.23,1.65894078]
[1764779310324,0.63809878,896.26,895.23,1.65894078]
[1764779310522,0.63809878,896.25,895.23,1.65894078]
[1764779310822,0.8310464,896.42,895.2,1.041]
[1764779310823,0.63809878,896.24,895.29,1.65894078]
[1764779311024,0.63809878,896.23,895.29,1.65894078]
[1764779311323,0.63809878,896.22,895.29,1.65894078]
[1764779311517,0.8310464,896.47,895.29,1.65894078]
[1764779311518,0.63809878,896.21,895.29,1.65894078]
[1764779311720,0.8310464,896.5,895.31,1.65894078]
[1764779312023,1.46925138,896.49,895.3,1.65894078]
[1764779312223,0.63820498,896.48,895.3,1.65894078]
[1764779312421,0.63820498,896.47,895.3,1.65894078]
[1764779312717,0.63820498,896.46,895.32,1.65894078]
[1764779313019,0.63820498,896.45,895.32,1.65894078]
[1764779313224,0.63820498,896.44,895.32,1.65894078]
[1764779313425,0.63820498,896.43,895.34,1.65894078]
[1764779313624,0.63820498,896.42,895.34,1.65894078]
[1764779313820,0.63820498,896.41,895.26,1.65894078]
[1764779314021,0.63820498,896.4,895.26,1.65894078]
[1764779314221,0.63820498,896.39,895.26,1.65894078]
[1764779314426,0.63820498,896.38,895.26,1.65894078]
[1764779314624,0.63820498,896.37,895.26,1.65894078]
[1764779314823,0.63820498,896.36,895.26,1.65894078]
[1764779315020,0.63820498,896.35,895.27,1.65894078]
[1764779315319,1.1022153,896.64,895.27,1.65894078]
[1764779315320,0.63820498,896.34,895.27,1.65894078]
[1764779315523,0.63820498,896.33,895.27,1.65894078]
[1764779315723,0.63820498,896.32,895.31,1.65894078]
[1764779315925,0.8310464,896.52,895.31,1.65894078]
[1764779315926,0.63820498,896.31,895.31,1.65894078]
[1764779316127,0.63820498,896.3,895.31,1.65894078]
[1764779316325,0.63820498,896.29,895.31,1.65894078]
[1764779316625,0.63820498,896.28,895.31,1.65894078]
[1764779316829,0.63820498,896.27,895.31,1.65894078]
[1764779317022,0.63820498,896.26,895.32,1.65894078]
[1764779317226,0.8310464,896.55,895.34,1.65894078]
[1764779317426,1.1022153,896.71,895.2,1.041]
[1764779317427,0.63811151,896.54,895.36,1.65894078]
[1764779317724,0.63811151,896.53,895.36,1.65894078]
[1764779317925,0.63811151,896.52,895.36,1.65894078]
[1764779318122,0.63811151,896.51,895.36,1.65894078]
[1764779318426,0.63811151,896.5,895.37,1.65894078]
[1764779318627,0.63811151,896.49,895.37,1.65894078]
[1764779318826,0.63811151,896.48,895.37,1.65894078]
[1764779319023,0.63811151,896.47,895.39,1.65894078]
[1764779319327,0.63811151,896.46,895.48,1.65894078]
[1764779319628,0.63811151,896.45,895.48,1.65894078]
[1764779319926,0.63811151,896.44,895.47,1.65894078]
[1764779320123,0.63811151,896.43,895.46,1.65894078]
[1764779320322,0.63811151,896.42,895.46,1.65894078]
[1764779320627,0.63811151,896.41,895.46,1.65894078]
[1764779320828,0.8310464,896.7,895.46,1.65894078]
[1764779321229,0.63795333,896.69,895.45,1.65894078]
[1764779321528,0.63795333,896.68,895.45,1.65894078]
[1764779321725,0.63795333,896.67,895.45,1.65894078]
[1764779321927,0.63795333,896.66,895.45,1.65894078]
[1764779322129,0.63795333,896.65,895.45,1.65894078]
[1764779322431,0.63795333,896.64,895.44,1.65894078]
[1764779322630,0.63795333,896.63,895.44,1.65894078]
[1764779322824,0.63795333,896.62,895.44,1.65894078]
[1764779323024,0.63795333,896.61,895.44,1.65894078]
[1764779323229,0.63795333,896.6,895.43,1.65894078]
[1764779323430,0.63795333,896.59,895.43,1.65894078]
[1764779323624,0.63795333,896.58,895.44,1.65894078]
[1764779323928,0.63795333,896.57,895.45,1.65894078]
[1764779324129,0.63795333,896.56,895.44,1.65894078]
[1764779324328,0.63795333,896.55,895.44,1.65894078]
[1764779324527,0.63795333,896.54,895.44,1.65894078]
[1764779324730,0.63795333,896.53,895.44,1.65894078]
[1764779324925,0.63795333,896.52,895.44,1.65894078]
[1764779325230,0.63795333,896.51,895.43,1.65894078]
[1764779325423,0.63795333,896.5,895.45,0.84]
[1764779325625,0.63795333,896.49,895.45,0.84]
[1764779325827,0.63795333,896.48,895.45,0.84]
[1764779326029,0.8310464,896.77,895.45,0.84]
[1764779326230,0.63745828,896.76,895.45,0.84]
[1764779326427,0.63745828,896.75,895.45,0.84]
[1764779326631,0.63745828,896.74,895.46,0.772]
[1764779326927,0.63745828,896.73,895.46,0.772]
[1764779327132,0.63745828,896.72,895.46,0.772]
[1764779327327,0.63745828,896.71,895.46,0.772]
[1764779327526,0.63745828,896.7,895.46,0.772]
[1764779327727,0.63745828,896.69,895.46,0.772]
[1764779328031,0.63745828,896.68,895.46,0.772]
[1764779328232,0.63745828,896.67,895.46,0.772]
[1764779328532,0.63745828,896.66,895.46,0.772]
[1764779328731,0.63745828,896.65,895.46,0.772]
[1764779329026,0.63745828,896.64,895.46,0.772]
[1764779329233,0.63745828,896.63,895.46,0.772]
[1764779329437,0.63745828,896.62,895.46,0.772]
[1764779329633,0.63745828,896.61,895.46,0.772]
[1764779329830,0.63745828,896.6,895.46,0.772]
[1764779330031,0.63745828,896.59,895.46,0.772]
[1764779330230,0.63745828,896.58,895.46,0.772]
[1764779330534,0.63745828,896.57,895.46,0.772]
[1764779330734,0.63745828,896.56,895.46,0.772]
[1764779330930,0.63745828,896.55,895.46,0.772]
[1764779331132,0.63745828,896.54,895.46,0.772]
[1764779331335,0.63745828,896.53,895.46,0.772]
[1764779331534,0.8310464,896.82,895.46,0.772]
[1764779331734,0.63655433,896.81,895.46,0.772]
[1764779332034,0.63655433,896.8,895.46,0.772]
[1764779332235,0.63655433,896.79,895.46,0.772]
[1764779332435,0.63655433,896.78,895.46,0.772]
[1764779332735,0.63655433,896.77,895.46,0.772]
[1764779332931,0.63655433,896.76,895.46,0.772]
[1764779333129,0.63655433,896.75,895.46,0.772]
[1764779333334,0.63655433,896.74,895.46,0.772]
[1764779333536,0.63655433,896.73,895.46,0.772]
[1764779333735,0.63655433,896.72,895.46,0.772]
[1764779333933,0.63655433,896.71,895.46,0.772]
[1764779334133,0.63655433,896.7,895.46,0.772]
[1764779334331,0.63655433,896.69,895.46,0.772]
[1764779334536,0.63655433,896.68,895.46,0.772]
[1764779334736,0.63655433,896.67,895.46,0.772]
[1764779334933,0.63655433,896.66,895.46,0.772]
[1764779335132,0.63655433,896.65,895.46,0.772]
[1764779335337,0.63655433,896.64,895.46,0.772]
[1764779335532,0.63655433,896.63,895.46,0.772]
[1764779335734,0.63655433,896.62,895.46,0.772]
[1764779335936,0.63655433,896.61,895.46,0.772]
[1764779336136,0.63655433,896.6,895.46,0.772]
[1764779336434,0.63655433,896.59,895.46,0.772]
[1764779336637,0.63655433,896.58,895.46,0.772]
[1764779336932,0.63655433,896.57,895.46,0.772]
[1764779337133,0.63655433,896.56,895.46,0.772]
[1764779337333,0.63655433,896.55,895.46,0.772]
[1764779337536,0.8310464,896.83,895.46,0.772]
[1764779337735,0.63626053,896.82,895.46,0.772]
[1764779337938,0.63626053,896.81,895.46,0.772]
[1764779338139,0.63626053,896.8,895.46,0.772]
[1764779338340,0.63626053,896.79,895.46,0.772]
[1764779338537,0.63626053,896.78,895.46,0.772]
[1764779338840,0.63626053,896.77,895.46,0.772]
[1764779339040,0.63626053,896.76,895.46,0.772]
[1764779339241,0.8310464,896.69,895.46,0.772]
[1764779339441,0.8310464,896.67,895.46,0.772]
[1764779339740,0.63626053,896.66,895.46,0.772]
[1764779340040,0.63626053,896.65,895.46,0.772]
[1764779340339,0.63626053,896.64,895.46,0.772]
[1764779340638,0.8310464,896.51,895.46,0.772]
[1764779340833,1.46730693,896.5,895.46,0.772]
[1764779341039,0.63626053,896.49,895.46,0.772]
[1764779343343,1.46730693,896.49,895.46,0.772]
[1764779343544,0.63626053,896.48,895.46,0.772]
[1764779345440,1.46730693,896.48,895.46,0.772]
[1764779345644,0.19413035,897.07,895.46,0.772]
[1764779345645,0.8310464,896.43,895.46,0.772]
[1764779345845,0.63626053,896.42,895.46,0.772]
[1764779346041,1.46730693,896.41,895.46,0.772]
[1764779346343,0.63626053,896.4,895.46,0.772]
[1764779347244,1.46730693,896.4,895.46,0.772]
[1764779347441,0.63626053,896.39,895.46,0.772]
[1764779347641,0.63626053,896.39,895.47,1.012]
[1764779348343,1.46730693,896.39,895.47,1.012]
[1764779348543,0.63626053,896.38,895.47,1.012]
[1764779349144,0.63626053,896.37,895.47,1.012]
[1764779349445,0.63626053,896.36,895.47,1.012]
[1764779349643,0.63626053,896.35,895.47,1.012]
[1764779349844,0.63626053,896.34,895.47,1.012]
[1764779350042,0.63626053,896.33,895.47,1.012]
[1764779350241,1.1022153,896.55,895.47,1.012]
[1764779350242,0.63626053,896.32,895.47,1.012]
[1764779350442,0.63626053,896.31,895.47,1.012]
[1764779350645,0.63626053,896.3,895.47,1.012]
[1764779350844,0.63626053,896.29,895.47,1.012]
[1764779351048,0.63626053,896.28,895.47,1.012]
[1764779351249,0.63626053,896.27,895.47,1.012]
[1764779351449,0.63626053,896.26,895.47,1.012]
[1764779351746,0.63626053,896.25,895.47,1.012]
[1764779352045,0.63626053,896.24,895.47,1.012]
[1764779352350,0.63626053,896.23,895.47,1.012]
[1764779352545,0.63626053,896.22,895.47,1.012]
[1764779352849,0.63626053,896.21,895.47,1.012]
[1764779353046,0.63626053,896.2,895.47,1.012]
[1764779353245,0.63626053,896.19,895.47,1.012]
[1764779353447,0.63626053,896.18,895.47,1.012]
[1764779353750,0.63626053,896.17,895.47,1.012]
[1764779353952,0.63626053,896.16,895.48,0.786]
[1764779354150,0.63626053,896.15,895.48,0.786]
[1764779354457,0.8310464,896.29,895.48,0.786]
[1764779354458,0.63626053,896.14,895.48,0.786]
[1764779354646,0.63626053,896.13,895.48,0.786]
[1764779354849,0.63626053,896.12,895.48,0.786]
[1764779355051,0.63626053,896.11,895.48,0.786]
[1764779355249,0.63626053,896.1,895.48,0.786]
[1764779355446,0.63626053,896.09,895.48,0.786]
[1764779355648,0.63626053,896.08,895.48,0.786]
[1764779355848,0.63626053,896.07,895.48,0.786]
[1764779356049,0.63626053,896.06,895.48,0.786]
[1764779356250,0.63626053,896.05,895.48,0.786]
[1764779356449,0.63626053,896.04,895.48,0.786]
[1764779356751,0.63626053,896.03,895.48,0.786]
[1764779356952,0.63626053,896.02,895.48,0.786]
[1764779357153,0.63626053,896.01,895.48,0.786]
[1764779357351,0.63626053,896.0,895.48,0.786]
[1764779357555,0.8310464,896.29,895.48,0.786]
[1764779357851,0.63730257,896.28,895.48,0.786]
[1764779358054,0.63730257,896.27,895.48,0.786]
[1764779358254,0.63730257,896.26,895.48,0.786]
[1764779358453,0.63730257,896.25,895.48,0.786]
[1764779358655,0.63730257,896.24,895.48,0.786]
[1764779358853,0.63730257,896.23,895.48,0.786]
[1764779359153,0.63730257,896.22,895.48,0.786]
[1764779359456,0.63730257,896.21,895.48,0.786]
[1764779359656,0.63730257,896.2,895.48,0.786]
[1764779359856,0.63730257,896.19,895.48,0.786]
[1764779360056,0.63730257,896.18,895.48,0.786]
[1764779360252,0.63730257,896.17,895.48,0.786]
[1764779360457,0.63730257,896.16,895.48,0.786]
[1764779360657,0.63730257,896.15,895.48,0.786]
[1764779360857,0.63730257,896.14,895.48,0.786]
[1764779361057,0.63730257,896.13,895.48,0.786]
[1764779361258,0.63730257,896.12,895.48,0.786]
[1764779361460,0.63730257,896.11,895.48,0.786]
[1764779361758,0.63730257,896.1,895.48,0.786]
[1764779361959,0.63730257,896.09,895.48,0.786]
[1764779362255,0.63730257,896.08,895.48,0.786]
[1764779362459,0.63730257,896.07,895.48,0.786]
[1764779362660,0.63730257,896.06,895.48,0.786]
[1764779362861,0.63730257,896.05,895.48,0.786]
[1764779363061,0.63730257,896.04,895.48,0.786]
[1764779363260,0.63730257,896.03,895.48,0.786]
[1764779363556,0.63730257,896.02,895.48,0.786]
[1764779363862,0.63730257,896.01,895.48,0.786]
[1764779364162,0.63730257,896.0,895.48,0.786]
[1764779364361,0.8310464,896.29,895.48,0.786]
[1764779364562,0.63735239,896.28,895.48,0.786]
[1764779364758,0.63735239,896.27,895.48,0.786]
[1764779364961,0.63735239,896.26,895.48,0.786]
[1764779365261,0.63735239,896.25,895.48,0.786]
[1764779365458,0.63735239,896.24,895.48,0.786]
[1764779365661,0.63735239,896.23,895.48,0.786]
[1764779365857,0.63735239,896.22,895.48,0.786]
[1764779366160,0.63735239,896.21,895.48,0.786]
[1764779366359,0.63735239,896.39,895.48,0.786]
[1764779366658,0.63735239,896.38,895.48,0.786]
[1764779366856,0.63735239,896.37,895.48,0.786]
[1764779367061,0.63735239,896.36,895.48,0.786]
[1764779367258,0.63735239,896.35,895.48,0.786]
[1764779367459,0.63735239,896.34,895.48,0.786]
[1764779367660,0.63735239,896.33,895.48,0.786]
[1764779367956,0.63735239,896.32,895.48,0.786]
[1764779368161,0.63735239,896.31,895.48,0.786]
[1764779368360,0.63735239,896.3,895.48,0.786]
[1764779368560,0.63735239,896.29,895.48,0.786]
[1764779368760,0.63735239,896.28,895.48,0.786]
[1764779368959,0.63735239,896.27,895.48,0.786]
[1764779369160,0.63735239,896.26,895.48,0.786]
[1764779369364,0.8310464,896.54,895.48,0.786]
[1764779369564,0.63753675,896.53,895.48,0.786]
[1764779369858,0.63753675,896.52,895.48,0.786]
[1764779370062,0.63753675,896.51,895.48,0.786]
[1764779370263,0.63753675,896.5,895.48,0.786]
[1764779370558,0.63753675,896.49,895.48,0.786]
[1764779370759,0.63753675,896.48,895.48,0.786]
[1764779371060,0.63753675,896.47,895.48,0.786]
[1764779371262,0.63753675,896.46,895.48,0.786]
[1764779371462,0.63753675,896.45,895.48,0.786]
[1764779371661,0.63753675,896.44,895.48,0.786]
[1764779371862,0.63753675,896.43,895.48,0.786]
[1764779372163,0.63753675,896.42,895.48,0.786]
[1764779372366,0.63753675,896.41,895.48,0.786]
[1764779372565,0.63753675,896.4,895.48,0.786]
[1764779372765,0.63753675,896.39,895.48,0.786]
[1764779373062,0.63753675,896.38,895.48,0.786]
[1764779373366,0.63753675,896.37,895.48,0.786]
[1764779373667,0.63753675,896.36,895.48,0.786]
[1764779373868,0.63753675,896.35,895.48,0.786]
[1764779374169,0.63753675,896.34,895.48,0.786]
[1764779374363,0.63753675,896.33,895.48,0.786]
[1764779374564,0.8310464,896.54,895.48,0.786]
[1764779374565,0.63753675,896.32,895.48,0.786]
[1764779374864,0.63753675,896.31,895.48,0.786]
[1764779375168,0.63753675,896.3,895.48,0.786]
[1764779375368,0.63753675,896.29,895.48,0.786]
[1764779375568,0.63753675,896.28,895.48,0.786]
[1764779375864,0.63753675,896.27,895.48,0.786]
[1764779376069,0.63753675,896.26,895.48,0.786]
[1764779376270,0.63753675,896.25,895.48,0.786]
[1764779376471,0.63753675,896.24,895.48,0.786]
[1764779376771,0.8310464,896.53,895.48,0.786]
[1764779376967,0.63753628,896.52,895.48,0.786]
[1764779377269,0.63753628,896.51,895.48,0.786]
[1764779377467,0.63753628,896.5,895.48,0.786]
[1764779377770,0.63753628,896.49,895.48,0.786]
[1764779377966,0.63753628,896.48,895.48,0.786]
[1764779378166,0.63753628,896.47,895.48,0.786]
[1764779378370,0.63753628,896.46,895.48,0.786]
[1764779378567,0.63753628,896.45,895.48,0.786]
[1764779378770,0.63753628,896.44,895.48,0.786]
[1764779378970,0.63753628,896.43,895.48,0.786]
[1764779379167,0.63753628,896.42,895.48,0.786]
[1764779379370,0.63753628,896.41,895.48,0.786]
[1764779379566,0.63753628,896.4,895.48,0.786]
[1764779379771,0.63753628,896.39,895.48,0.786]
[1764779380070,0.63753628,896.38,895.48,0.786]
[1764779380271,0.63753628,896.37,895.48,0.786]
[1764779380472,0.63753628,896.36,895.48,0.786]
[1764779380667,0.63753628,896.35,895.48,0.786]
[1764779380866,0.63753628,896.34,895.48,0.786]
[1764779381070,0.8310464,896.52,895.48,0.786]
[1764779381071,0.63753628,896.33,895.48,0.786]
[1764779381372,0.63753628,896.32,895.48,0.786]
[1764779381572,0.63753628,896.31,895.48,0.786]
[1764779381772,0.63753628,896.3,895.48,0.786]
[1764779381973,0.63753628,896.29,895.48,0.786]
[1764779382273,0.63753628,896.28,895.48,0.786]
[1764779382574,0.63753628,896.27,895.48,0.786]
[1764779382874,0.63753628,896.26,895.48,0.786]
[1764779383074,0.63753628,896.25,895.48,0.786]
[1764779383375,0.63753628,896.24,895.48,0.786]
[1764779383574,0.63753628,896.23,895.48,0.786]
[1764779383873,0.63753628,896.22,895.48,0.786]
[1764779384074,0.8310464,896.51,895.47,1.012]
[1764779384274,1.46930016,896.5,895.47,1.012]
[1764779384471,0.63825376,896.49,895.47,1.012]
[1764779384675,0.63825376,896.48,895.47,1.012]
[1764779384876,0.63825376,896.47,895.47,1.012]
[1764779385077,0.63825376,896.46,895.47,1.012]
[1764779385275,0.63825376,896.45,895.47,1.012]
[1764779385474,0.63825376,896.44,895.47,1.012]
[1764779385672,0.63825376,896.43,895.47,1.012]
[1764779385877,0.63825376,896.42,895.47,1.012]
[1764779386077,0.63825376,896.41,895.47,1.012]
[1764779386373,0.63825376,896.4,895.47,1.012]
[1764779386574,0.63825376,896.39,895.48,0.973]
[1764779386875,0.63825376,896.38,895.48,0.973]
[1764779387077,0.63825376,896.37,895.48,0.973]
[1764779387278,0.63825376,896.36,895.48,0.973]
[1764779387473,0.63825376,896.35,895.48,0.973]
[1764779387777,0.63825376,896.34,895.48,0.973]
[1764779387978,0.63825376,896.33,895.48,0.973]
[1764779388176,0.63825376,896.32,895.48,0.973]
[1764779388376,0.63825376,896.31,895.48,0.973]
[1764779388582,0.63825376,896.3,895.48,0.973]
[1764779388876,0.8310464,896.58,895.48,0.973]
[1764779390177,0.8310464,896.57,895.48,0.973]
[1764779392182,0.8310464,896.56,895.48,0.973]
[1764779394186,1.46967221,896.55,895.49,0.79]
[1764779394481,0.63862581,896.54,895.49,0.79]
[1764779394780,0.63862581,896.53,895.49,0.79]
[1764779394979,0.63862581,896.52,895.49,0.79]
[1764779395184,0.63862581,896.51,895.49,0.79]
[1764779395381,0.63862581,896.5,895.49,0.79]
[1764779395580,0.63862581,896.49,895.49,0.79]
[1764779395785,0.63862581,896.48,895.49,0.79]
[1764779396086,0.63862581,896.47,895.49,0.79]
[1764779396381,0.63862581,896.46,895.49,0.79]
[1764779396581,0.63862581,896.45,895.49,0.79]
[1764779396884,0.63862581,896.44,895.49,0.79]
[1764779397084,0.63862581,896.43,895.49,0.79]
[1764779397285,0.63862581,896.42,895.49,0.79]
[1764779397584,0.63862581,896.41,895.49,0.79]
[1764779397884,0.63862581,896.4,895.49,0.79]
[1764779398084,0.63862581,896.39,895.49,0.79]
[1764779398285,0.63862581,896.38,895.49,0.79]
[1764779398585,0.63862581,896.37,895.49,0.79]
[1764779398784,0.63862581,896.36,895.49,0.79]
[1764779398984,0.63862581,896.35,895.49,0.79]
[1764779399182,0.63862581,896.34,895.49,0.79]
[1764779399383,0.63862581,896.33,895.49,0.79]
[1764779399581,0.63862581,896.32,895.49,0.79]
[1764779399781,0.63862581,896.31,895.49,0.79]
[1764779399981,0.63862581,896.3,895.49,0.79]
[1764779400182,0.63862581,896.29,895.49,0.79]
[1764779400482,0.63862581,896.28,895.49,0.79]
[1764779400684,0.8310464,896.52,895.49,0.79]
[1764779400685,0.63862581,896.27,895.49,0.79]
[1764779400881,0.63862581,896.26,895.49,0.79]
[1764779401085,0.63862581,896.25,895.49,0.79]
[1764779401280,0.63862581,896.24,895.49,0.79]
[1764779401484,0.8310464,896.52,895.49,0.79]
[1764779402588,0.63890546,896.51,895.49,0.79]
[1764779402784,0.63890546,896.5,895.49,0.79]
[1764779402988,0.63890546,896.49,895.49,0.79]
[1764779403188,0.63890546,896.48,895.49,0.79]
[1764779403385,0.63890546,896.47,895.49,0.79]
[1764779403590,0.63890546,896.46,895.49,0.79]
[1764779403890,0.63890546,896.45,895.49,0.79]
[1764779404191,0.63890546,896.44,895.49,0.79]
[1764779404387,0.63890546,896.43,895.49,0.79]
[1764779404591,0.63890546,896.42,895.49,0.79]
[1764779404785,0.63890546,896.41,895.49,0.79]
[1764779404986,0.63890546,896.4,895.49,0.79]
[1764779405288,0.63890546,896.39,895.49,0.79]
[1764779405485,0.63890546,896.38,895.49,0.79]
[1764779405691,0.63890546,896.37,895.49,0.79]
[1764779405891,0.63890546,896.36,895.49,0.79]
[1764779406089,0.63890546,896.35,895.49,0.79]
[1764779406291,0.01332703,897.31,895.49,0.79]
[1764779406292,0.63890546,896.34,895.49,0.79]
[1764779406487,0.63890546,896.33,895.49,0.79]
[1764779406687,0.63890546,896.32,895.49,0.79]
[1764779406890,0.63890546,896.31,895.49,0.79]
[1764779407089,0.63890546,896.3,895.49,0.79]
[1764779407289,0.63890546,896.29,895.49,0.79]
[1764779407491,0.63890546,896.28,895.49,0.79]
[1764779407690,0.63890546,896.27,895.49,0.79]
[1764779407895,0.63890546,896.26,895.49,0.79]
[1764779408091,0.63890546,896.25,895.49,0.79]
[1764779408394,0.63890546,896.24,895.49,0.79]
[1764779408591,0.63890546,896.23,895.5,0.896]
[1764779408794,0.63890546,896.22,895.5,0.896]
[1764779408994,0.63890546,896.21,895.5,0.896]
[1764779409192,0.63890546,896.2,895.5,0.896]
[1764779409394,0.63890546,896.19,895.5,0.896]
[1764779409592,0.63890546,896.18,895.5,0.896]
[1764779409896,0.63890546,896.17,895.5,0.896]
[1764779410096,0.63890546,896.16,895.5,0.896]
[1764779410295,0.63890546,896.15,895.5,0.896]
[1764779410491,0.63890546,896.14,895.5,0.896]
[1764779410795,0.63890546,896.13,895.5,0.896]
[1764779410992,0.63890546,896.12,895.5,0.896]
[1764779411291,0.63890546,896.11,895.5,0.896]
[1764779411596,0.63890546,896.1,895.5,0.896]
[1764779411793,0.63890546,896.09,895.5,0.896]
[1764779412094,0.63890546,896.08,895.5,0.896]
[1764779412297,0.63890546,896.07,895.5,0.896]
[1764779412498,0.63890546,896.06,895.5,0.896]
[1764779412697,0.63890546,896.05,895.5,0.896]
[1764779412896,0.8310464,896.34,895.5,0.896]
[1764779413096,0.8310464,896.32,895.5,0.896]
[1764779413298,0.63870486,896.31,895.5,0.896]
[1764779413498,0.63870486,896.3,895.5,0.896]
[1764779413699,0.63870486,896.29,895.5,0.896]
[1764779413900,0.63870486,896.28,895.5,0.896]
[1764779414097,0.63870486,896.27,895.5,0.896]
[1764779414296,0.63870486,896.26,895.5,0.896]
[1764779414600,0.63870486,896.25,895.5,0.896]
[1764779414900,0.63870486,896.24,895.5,0.896]
[1764779415196,0.63870486,896.23,895.5,0.896]
[1764779415396,0.63870486,896.22,895.5,0.896]
[1764779415600,0.63870486,896.21,895.5,0.896]
[1764779415802,0.8310464,896.5,895.5,0.896]
[1764779416003,0.6372558,896.49,895.5,0.896]
[1764779416301,0.6372558,896.48,895.5,0.896]
[1764779416597,0.6372558,896.47,895.5,0.896]
[1764779416800,0.8310464,896.49,895.5,0.896]
[1764779416801,0.6372558,896.46,895.5,0.896]
[1764779417096,0.6372558,896.45,895.5,0.896]
[1764779417401,0.6372558,896.44,895.53,1.65894078]
[1764779417598,0.6372558,896.43,895.53,1.65894078]